Workbook

Sheet GebStandard
B1: Gebäudestandards und Wägungsanteile für Ein- und Zweifamilienhäuser, Stufen 1-5 gemäß Anlage 4 der ImmoWertV
B4: Wägungsan- teile (∑100 %) | C4: Stufe 1 | E4: Stufe 2 | G4: Stufe 3 | I4: Stufe 4 | K4: Stufe 5
B5: Außenwände | C5: Holzfachwerk, Ziegelmauerwerk; Fugenglattstrich, Putz, Verkleidung mit Faserzementplatten, Bitumenschindeln oder einfachen Kunststoffplatten; kein oder deutlich nicht zeitgemäßer Wärmeschutz (vor ca. 1980) | E5: ein-/zweischaliges Mauerwerk, z. B. Gitterziegel oder Hohlblocksteine; verputzt und gestrichen oder Holzverkleidung; nicht zeitgemäßer Wärmeschutz (vor ca. 1995) | G5: ein-/zweischaliges Mauerwerk, z. B. aus Leichtziegeln, Kalksandsteinen, Gasbetonsteinen; Edelputz; Wärmedämmverbundsystem oder Wärmedämmputz (nach ca. 1995) | I5: Verblendmauerwerk, zweischalig, hinterlüftet, Vorhangfassade (z. B. Naturschiefer); Wärmedämmung (nach ca. 2005) | K5: aufwendig gestaltete Fassaden mit konstruktiver Gliederung (Säulenstell-ungen, Erker etc.), Sichtbeton-Fertig-teile, Natursteinfassade, Elemente aus Kupfer-/Eloxalblech, mehrgeschoss. Glasfassaden; hochwertigste Dämmung | N5: =IF(N6=TRUE,1,0) -> 0 | O5: =IF(O6=TRUE,1,0) -> 0 | P5: 1 | Q5: 0 | R5: 0
B6: 23% | C6: =ROUND($B6/$S6*N5,4) -> 0 | E6: =ROUND($B6/$S6*O5,4) -> 0 | G6: =ROUND($B6/$S6*P5,4) -> 0.23 | I6: =ROUND($B6/$S6*Q5,4) -> 0 | K6: =ROUND($B6/$S6*R5,4) -> 0 | N6: FALSE | O6: FALSE | P6: TRUE | Q6: FALSE | R6: FALSE | S6: =COUNTIF(N6:R6,TRUE) -> 1
B7: Dach | C7: Dachpappe, Faserzementplatten/ Wellplatten; keine bis geringe Dachdämmung | E7: einfache Betondachsteine oder Tondachziegel, Bitumenschindeln; nicht zeitgemäße Dachdämmung (vor ca. 1995) | G7: Faserzement-Schindeln, beschichtete Betondachsteine und Tondachziegel, Folienabdichtung; Dachdämmung (nach ca. 1995) | I7: glasierte Tondachziegel, Flachdach- ausbildung tlw. als Dachterrassen; Konstruktion in Brettschichtholz, schweres Massivflachdach; besondere Dachformen, z. B. Mansarden-, Walmdach; Aufsparrendämmung, überdurchschn. Dämmung (nach ca. 2005) | K7: hochwertige Eindeckung z. B. aus Schiefer oder Kupfer, Dachbegrünung, befahrbares Flachdach; stark überdurchschnittliche Dämmung | N7: =IF(N8=TRUE,1,0) -> 0 | O7: =IF(O8=TRUE,1,0) -> 0 | P7: 1 | Q7: 0 | R7: 0
B8: 15% | C8: =ROUND($B8/$S8*N7,4) -> 0 | E8: =ROUND($B8/$S8*O7,4) -> 0 | G8: =ROUND($B8/$S8*P7,4) -> 0.15 | I8: =ROUND($B8/$S8*Q7,4) -> 0 | K8: =ROUND($B8/$S8*R7,4) -> 0 | N8: FALSE | O8: FALSE | P8: TRUE | Q8: FALSE | R8: FALSE | S8: =COUNTIF(N8:R8,TRUE) -> 1
B9: Fenster und Außentüren | C9: Einfachverglasung; einfache Holztüren | E9: Zweifachverglasung (vor ca. 1995); Haustür mit nicht zeitgemäßem Wärmeschutz (vor ca. 1995) | G9: Zweifachverglasung (nach ca. 1995), Rollläden (manuell); Haustür mit zeitgemäßem Wärmeschutz (nach ca. 1995) | I9: Dreifachverglasung, Sonnenschutz- glas, aufwendigere Rahmen, Rollläden (elektr.); höherwertige Türanlagen z. B. mit Seitenteil, besonderer Einbruchschutz | K9: große feststehende Fensterflächen, Spezialverglasung (Schall- und Sonnenschutz); Außentüren in hochwertigen Materialien | N9: =IF(N10=TRUE,1,0) -> 0 | O9: =IF(O10=TRUE,1,0) -> 0 | P9: 1 | Q9: 0 | R9: 0
B10: 11% | C10: =ROUND($B10/$S10*N9,4) -> 0 | E10: =ROUND($B10/$S10*O9,4) -> 0 | G10: =ROUND($B10/$S10*P9,4) -> 0.11 | I10: =ROUND($B10/$S10*Q9,4) -> 0 | K10: =ROUND($B10/$S10*R9,4) -> 0 | N10: FALSE | O10: FALSE | P10: TRUE | Q10: FALSE | R10: FALSE | S10: =COUNTIF(N10:R10,TRUE) -> 1
B11: Innenwände und -türen | C11: Fachwerkwände, einfache Putze/Lehmputze, einfache Kalkanstriche; Füllungstüren, gestrichen, mit einfachen Beschlägen ohne Dichtungen | E11: massive tragende Innenwände, nicht tragende Wände in Leichtbauweise (z. B. Holzständerwände mit Gipskarton), Gipsdielen; leichte Türen, Stahlzargen | G11: nicht tragende Innenwände in massiver Ausführung bzw. mit Dämmmaterial gefüllte Ständerkonstruktionen; schwere Türen | I11: Sichtmauerwerk; Massivholztüren, Schiebetürelemente, Glastüren, strukturierte Türblätter | K11: gestaltete Wandabläufe (z. B. Pfeilervorlagen, abgesetzte oder geschwungene Wandpartien); Brandschutzverkleidung; raumhohe aufwendige Türelemente | N11: =IF(N12=TRUE,1,0) -> 0 | O11: =IF(O12=TRUE,1,0) -> 0 | P11: 1 | Q11: 0 | R11: 0
B12: 11% | C12: =ROUND($B12/$S12*N11,4) -> 0 | E12: =ROUND($B12/$S12*O11,4) -> 0 | G12: =ROUND($B12/$S12*P11,4) -> 0.11 | I12: =ROUND($B12/$S12*Q11,4) -> 0 | K12: =ROUND($B12/$S12*R11,4) -> 0 | N12: FALSE | O12: FALSE | P12: TRUE | Q12: FALSE | R12: FALSE | S12: =COUNTIF(N12:R12,TRUE) -> 1
B13: Deckenkon- struktion | C13: Holzbalkendecken ohne Füllung, Spalierputz; Weichholztreppen in einfacher Art und Ausführung; kein Trittschallschutz | E13: Holzbalkendecken mit Füllung, Kappendecken; Stahl- oder Hartholztreppen in einfacher Art und Ausführung | G13: Beton- und Holzbalkendecken mit Tritt- und Luftschallschutz (z. B. schwimmender Estrich); geradläufige Treppen aus Stahlbeton oder Stahl, Harfentreppe, Trittschallschutz | I13: Decken mit größerer Spannweite, Deckenverkleidung (Holzpaneele/Kasseten); gewendelte Treppen aus Stahlbeton oder Stahl, Hartholztreppenanlage in besserer Art und Ausführung | K13: Decken mit großen Spannweiten, Deckenvertäfelungen (Edelholz, Metall); breite Stahlbeton-, Metall- oder Holztreppenanlage mit hochwertigem Geländer | N13: =IF(N14=TRUE,1,0) -> 0 | O13: =IF(O14=TRUE,1,0) -> 0 | P13: 1 | Q13: 0 | R13: 0
B14: 11% | C14: =ROUND($B14/$S14*N13,4) -> 0 | E14: =ROUND($B14/$S14*O13,4) -> 0 | G14: =ROUND($B14/$S14*P13,4) -> 0.11 | I14: =ROUND($B14/$S14*Q13,4) -> 0 | K14: =ROUND($B14/$S14*R13,4) -> 0 | N14: FALSE | O14: FALSE | P14: TRUE | Q14: FALSE | R14: FALSE | S14: =COUNTIF(N14:R14,TRUE) -> 1
B15: Fußböden | C15: ohne Belag | E15: Linoleum-, Teppich-, Laminat- und PVC-Böden einfacher Art und Ausführung | G15: Linoleum-, Teppich-, Laminat- und PVC-Böden besserer Art und Ausführung, Fliesen, Kunststeinplatten | I15: Natursteinplatten, Fertigparkett, hochwertige Fliesen, Terrazzobelag, hochwertige Massivholzböden auf aufgedämmter Unterkonstruktion | K15: hochwertiges Parkett, hochwertige Natursteinplatten, hochwertige Edelholzböden auf gedämmter Unterkonstruktion | N15: =IF(N16=TRUE,1,0) -> 0 | O15: =IF(O16=TRUE,1,0) -> 0 | P15: 1 | Q15: 0 | R15: 0
B16: 5% | C16: =ROUND($B16/$S16*N15,4) -> 0 | E16: =ROUND($B16/$S16*O15,4) -> 0 | G16: =ROUND($B16/$S16*P15,4) -> 0.05 | I16: =ROUND($B16/$S16*Q15,4) -> 0 | K16: =ROUND($B16/$S16*R15,4) -> 0 | N16: FALSE | O16: FALSE | P16: TRUE | Q16: FALSE | R16: FALSE | S16: =COUNTIF(N16:R16,TRUE) -> 1
B17: Sanitärein- richtungen | C17: einfaches Bad mit Stand-WC; Installation auf Putz, Ölfarbenanstrich, einfache PVC-Bodenbeläge | E17: 1 Bad mit WC, Dusche oder Badewanne; einfache Wand- und Bodenfliesen, teilweise gefliest | G17: 1 Bad mit WC je Wohneinheit; Dusche und Badewanne; Wand- und Bodenfliesen, raumhoch gefliest | I17: 1 – 2 Bäder je Wohneinheit mit tlw. zwei Waschbecken, tlw. Bidet/ Urinal, Gäste-WC, bodengleiche Dusche; Wand- und Bodenfliesen jeweils in gehobener Qualität | K17: 2 und mehr Bäder je Wohneinheit; hochwertige Wand- und Bodenplatten (oberflächenstrukturiert, Einzel- und Flächendekors) | N17: =IF(N18=TRUE,1,0) -> 0 | O17: =IF(O18=TRUE,1,0) -> 0 | P17: 1 | Q17: 0 | R17: 0
B18: 9% | C18: =ROUND($B18/$S18*N17,4) -> 0 | E18: =ROUND($B18/$S18*O17,4) -> 0 | G18: =ROUND($B18/$S18*P17,4) -> 0.09 | I18: =ROUND($B18/$S18*Q17,4) -> 0 | K18: =ROUND($B18/$S18*R17,4) -> 0 | N18: FALSE | O18: FALSE | P18: TRUE | Q18: FALSE | R18: FALSE | S18: =COUNTIF(N18:R18,TRUE) -> 1
B19: Heizung | C19: Einzelöfen, Schwerkraftheizung | E19: Fern- oder Zentralheizung, einfache Warmluftheizung, einzelne Gasaußen-wandthermen, Nachtstromspeicher-, Fußbodenheizung (vor ca. 1995) | G19: elektronisch gesteuerte Fern- oder Zentralheizung, Niedertemperatur- oder Brennwertkessel | I19: Fußbodenheizung, Solarkollektoren für Warmwassererzeugung | K19: Solarkollektoren für Warmwassererzeugung und Heizung, Blockheizkraftwerk, Wärmepumpe, Hybrid-Systeme | N19: =IF(N20=TRUE,1,0) -> 0 | O19: =IF(O20=TRUE,1,0) -> 0 | P19: 1 | Q19: 0 | R19: 0
B20: 9% | C20: =ROUND($B20/$S20*N19,4) -> 0 | E20: =ROUND($B20/$S20*O19,4) -> 0 | G20: =ROUND($B20/$S20*P19,4) -> 0.09 | I20: =ROUND($B20/$S20*Q19,4) -> 0 | K20: =ROUND($B20/$S20*R19,4) -> 0 | N20: FALSE | O20: FALSE | P20: TRUE | Q20: FALSE | R20: FALSE | S20: =COUNTIF(N20:R20,TRUE) -> 1
B21: Sonstige technische Ausstattung | C21: sehr wenige Steckdosen, Schalter und Sicherungen, kein Fehlerstromschutzschalter (FI-Schalter), Leitungen teilweise auf Putz | E21: wenige Steckdosen, Schalter und Sicherungen | G21: zeitgemäße Anzahl an Steckdosen und Lichtauslässen; Zählerschrank (ab ca. 1985) mit Unterverteilung und Kippsicherungen | I21: zahlreiche Steckdosen und Lichtaus- lässe, hochwertige Abdeckungen, de-zentrale Lüftung mit Wärme- tauscher, mehrere LAN- und Fernseh-anschlüsse, Personenaufzugsanlagen | K21: Video- und zentrale Alarmanlage, zentrale Lüftung mit Wärmetauscher, Klimaanlage, Bussystem; aufwendige Personenaufzugsanlagen | N21: =IF(N22=TRUE,1,0) -> 0 | O21: =IF(O22=TRUE,1,0) -> 0 | P21: 1 | Q21: 0 | R21: 0
B22: 6% | C22: =ROUND($B22/$S22*N21,4) -> 0 | E22: =ROUND($B22/$S22*O21,4) -> 0 | G22: =ROUND($B22/$S22*P21,4) -> 0.06 | I22: =ROUND($B22/$S22*Q21,4) -> 0 | K22: =ROUND($B22/$S22*R21,4) -> 0 | N22: FALSE | O22: FALSE | P22: TRUE | Q22: FALSE | R22: FALSE | S22: =COUNTIF(N22:R22,TRUE) -> 1
B23: Summe | C23: =SUM(C6:C22) -> 0 | E23: =SUM(E6:E22) -> 0 | G23: =SUM(G6:G22) -> 1 | I23: =SUM(I6:I22) -> 0 | K23: =SUM(K6:K22) -> 0
B24: Standardstufe (gewogen): | E24: =(1*C23+2*E23+3*G23+4*I23+5*K23) -> 3 | G24: 2 bis 5 | I24: =IF(E24<2,"Grenzwert wird unterschritten","") -> 
B26: Die Ermittlung des Gebäudestandards über die Gebäudestandardtabelle wurde durchgeführt | K26: nein
B28: Hinweis: | C28: ="Das tatsächliche Baujahr nach Eintragung in der EingabeMaske beträgt "&EingabeMaske!D16&"." -> Das tatsächliche Baujahr nach Eintragung in der EingabeMaske beträgt 1995.
C29: =IF(OR((E24>2)*(E24<=2.5)*(EingabeMaske!D16>=2000),(E24>2)*(E24<=3)*(EingabeMaske!D16>=2015)),"Die Standardstufe in Höhe von "&E24&" ist - bezogen auf das Baujahr - außergewöhnlich niedrig. Bitte überprüfen Sie Ihre Eingaben!","") -> 

Sheet EingabeMaske
D1: EFH-Rechner, Version 1 - LGMB 2025, Stand 04.2025
A3: Vergleichswertberechnung für Einfamilienwohnhäuser mittels Anwendungsfunktion aus dem Landesgrundstücksmarktberichtes 2025
A4: gem. § 182 Abs.2 BewG i. V. m. § 183 BewG. | C4: Carport
A7: Eingabefelder blau | B7: Berechnungsfelder rot
A9: Angaben zum Wertermittlungsobjekt
A11: Adresse und Ort: | B11: Musterstraße 13, Musterstadt
A12: Gemeinde / Gemarkung / Landkreis bzw. Stadt:
B13: / /
A15: Wertermittlungsstichtag (WST): | D15: 2024-01-02
A16: tatsächliches Baujahr | D16: 1995
A17: Grundstücksfläche (Gf): | D17: 667
A18: Bodenrichtwert (BRW) 01.01.2024 (Auf ältere Stichtage erfolgt eine Umrechnung mittels eines Indexes) | D18: 170
A19: Anbauart | B19: (freistehend = 0, bei Doppelhaushälfte, Reihenmittelhaus oder Reihenendhaus = 1) | D19: 0
A20: Wohnfläche (WF): | D20: 147
A21: Vermietungssituation (VS) | C21: (vermietet =1, unvermietet = 0) | D21: 0
A22: Unterkellerung | C22: (Keller = 0, kein Keller = 1) | D22: 0
A23: Nebengebäude
A24: Anzahl Garagen | B24: 0 | C24: Anzahl Stellplätze der Garage/n | D24: 0 | G24: =IF((B24>0)*(D24=0),"Eingabe Anzahl der Stellplätze erforderlich!","") -> 
A25: Anzahl Carports | B25: 0 | C25: Anzahl Stellplätze der/des Carports | D25: 0 | G25: =IF((B25>0)*(D25=0),"Eingabe Anzahl der Stellplätze erforderlich!","") -> 
A26: Sonstiges
A28: Gebäudestandardstufe (GST): siehe Blatt "GebStandard" | C28: =IF(GebStandard!K26="nein","Ermittlung des Gebäudestandards wurde nicht bestätigt!","") -> Ermittlung des Gebäudestandards wurde nicht bestätigt! | D28: =IF(GebStandard!K26="nein","Standardtabelle auf Blatt GebStandard ausfüllen",IF(GebStandard!E24>=2,GebStandard!E24,"Grenzwert von 2,0 unterschritten")) -> Standardtabelle auf Blatt GebStandard ausfüllen | G28: =IF(GebStandard!E24<2,"Der Gebäudestandard liegt unter der Standardstufe 2. Somit ist der Grenzwert unterschritten und die Bewertung hat im Sachwertverfahren zu erfolgen","") -> 
A29: Marktsegment | D29: =ROUND(VLOOKUP(B13,'Vergleichsfaktoren 2025 (2)'!A8:H3022,6,FALSE),0) -> 0
A30: Index nach Marktsegment zum Wertermittlungsstichtag (2010 =100): | C30: =IF(D15>TODAY(),"Datum liegt in der Zukunft","") ->  | D30: ='Indizes 2024 Schätzung 2025'!X18 -> 
A31: Vergleichswert ggf. vorhandener Garage/n und Carport/s | C31: rd. | D31: ='Berechnung und Ergebnis'!E45+'Berechnung und Ergebnis'!E46 -> 
A32: Vergleichswert inkl. ggf. vorhandener Garage/n und Carport/s | C32: rd. | D32: ='Berechnung und Ergebnis'!K51 -> 
D34: pauschale Schäzung
A35: fiktives Baujahr: siehe Blatt "RND" | B35: =IF(RND!G34="ja",RND!G33,"liegt nicht vor") -> liegt nicht vor | C35: Gebäudestandard nach fiktivem Baujahr nicht übernehmen | D35: ='Vergleichsdaten 2025'!B33 -> - | G35: =IF(C35='Vergleichsdaten 2025'!A23,"Die pauschale Schätzung des Gebäudestandards auf Grundlage des fiktiven Baujahres ist zur Berechnung des Bedarfswerts nur im Ausnahmefall zu übernehmen.","") -> 
A40: Quelle: Oberer Gutachterausschuss für Grundstückswerte Rheinland-Pfalz gem. Landesgrundstückmarkbericht 2025

Sheet Berechnung und Ergebnis
B1: =EingabeMaske!D1 -> EFH-Rechner, Version 1 - LGMB 2025, Stand 04.2025
B2: Vergleichswertberechnung für Einfamilienwohnhäuser mittels Anwendungsfunktion aus dem Landesgrundstücksmarktberichtes 2025 gem. § 182 Abs.2 BewG i. V. m. § 183 BewG.
B4: Bezeichnung des Wertermittlungsobjekts der Bewertung nach § 183 BewG:
B5: =EingabeMaske!B11 -> Musterstraße 13, Musterstadt
B6: Angaben zum Wertermittlungsobjekt (WO)
B7: Wertermittlungsstichtag (WST): | K7: =EingabeMaske!D15 -> 2024-01-02
B8: Grundstücksfläche (Gf): | K8: =ROUND(EingabeMaske!D17,0) -> 667
B9: Bodenrichtwert (BRW) 01.01.2024: | K9: =EingabeMaske!D18 -> 170
B10: Gebäudestandardstufe (GST): | C10: (gemäß Erklärung, hilfsweise Schätzung) | K10: =ROUND(EingabeMaske!D28,2) -> 
B11: Anbauart: | K11: =IF(EingabeMaske!D19=0,"freistehend", "Doppelhaushälfte, Reihenmittelhaus oder Reihenendhaus") -> freistehend
B12: Wohnfläche (WF): | K12: =ROUND(EingabeMaske!D20,2) -> 147
B13: Vermietungssituation: | K13: =IF(EingabeMaske!D21=0,"unvermietet","vermietet") -> unvermietet
B14: Unterkellerung: | K14: =IF(EingabeMaske!D22=0,"unterkellert","keine Keller") -> unterkellert
B15: Nebengebäude: | D15: =EingabeMaske!B24 -> 0 | E15: Garage/n | F15: mit | G15: =EingabeMaske!D24 -> 0 | H15: Stellplätzen | K15: ='Vergleichsdaten 2025'!L18 -> 
D16: =EingabeMaske!B25 -> 0 | E16: Carport/s | F16: mit | G16: =EingabeMaske!D25 -> 0 | H16: Stellplätzen | K16: ='Vergleichsdaten 2025'!L19 -> 
E17: =IF(EingabeMaske!B26=0,"",EingabeMaske!B26) ->  | K17: =EingabeMaske!D26 -> 0
B18: Der objektspezifisch angepasste Vergleichsfaktor im Sinne von § 26 ImmoWertV wird durch Einsetzen der Einflussgrößen in die Anwendungsfunktion sowie anschließender Anpassung mit Hilfe der Indexreihe EFH an den Wertermittlungsstichtag ermittelt. Danach erfolgt die Multiplikation dieses objektspezifisch angepassten Vergleichsfaktors mit der Bezugsgröße (Wohnfläche), um den Vergleichswert zu erhalten. Weitere Besonderheiten, insbesondere die den Wert beeinflussenden Belastungen privatrechtlicher und öffentlich-rechtlicher Art, werden im Vergleichswertverfahren gemäß § 183 BewG nicht berücksichtigt.
B19: Ermittlung des Vergleichswertes
B20: Ermittlung des Vergleichsfaktors (VF) aus der Anwendungsfunktion:
B21: VF (01.01.2024) = a + b x Gf + c x BWN (01.01.2024) + d x St + e x Anb + f x WF + g x Vs + h x K
B22: ="VF (01.01.2024) = "&K24&" + "&H25&" x "&E25&" m² + "&H26&" x "&E26&" €/m² + "&H27&" x "&E27&" + ("&H28&" x "&E28&") + ("&H29&" x "&E29&" m²) + ("&H30&" x "&E30&") + ("&H31&" x "&E31&")" -> 
B24: Marktsegment | C24: MS | D24: = | E24: =EingabeMaske!D29 -> 0 | G24: a | H24: =ROUND('Vergleichsdaten 2025'!I5,6) ->  | K24: =ROUND(H24,6) -> 
B25: Grundstücksfläche [m²] | C25: GF | D25: = | E25: =EingabeMaske!D17 -> 667 | F25: x | G25: b | H25: =ROUND('Vergleichsdaten 2025'!I6,6) -> 0.658366 | J25: + | K25: =ROUND(H25*E25,6) -> 439.130122
B26: Bodenwertniveau zum 01.01.2024 [€/m²] | C26: BWN | D26: = | E26: =EingabeMaske!D18 -> 170 | F26: x | G26: c | H26: =ROUND('Vergleichsdaten 2025'!I7,6) -> 3.060787 | J26: + | K26: =ROUND(H26*E26,6) -> 520.33379
B27: Gebäudestandard nach NHK 2010 | C27: St | D27: = | E27: =IF(EingabeMaske!C35='Vergleichsdaten 2025'!A23,EingabeMaske!D35,EingabeMaske!D28) -> Standardtabelle auf Blatt GebStandard ausfüllen | F27: x | G27: d | H27: =ROUND('Vergleichsdaten 2025'!I8,6) -> 797.242597 | J27: +
B28: Anbauart | C28: Anb | D28: = | E28: =EingabeMaske!D19 -> 0 | F28: x | G28: e | H28: =ROUND('Vergleichsdaten 2025'!I9,6) -> -417.829533 | J28: + | K28: 0
B29: Wohnfläche | C29: WF | D29: = | E29: =EingabeMaske!D20 -> 147 | F29: x | G29: f | H29: =ROUND('Vergleichsdaten 2025'!I10,6) -> -9.134239 | J29: + | K29: -1342.733133
B30: Vermietungssituation | C30: VS | D30: = | E30: =EingabeMaske!D21 -> 0 | F30: x | G30: g | H30: =ROUND('Vergleichsdaten 2025'!I11,6) -> -108.472505 | J30: + | K30: 0
B31: Unterkellerung | C31: K | D31: = | E31: =EingabeMaske!D22 -> 0 | F31: x | G31: h | H31: =ROUND('Vergleichsdaten 2025'!I12,6) -> -51.7102 | J31: + | K31: 0
J32: = | K32: =SUM(K24:K31) -> 
B33: vorl. Vergleichsfaktor (01.01.2024) inkl. Garage aus der Anwendungsfunktion : | J33: rd. | K33: =ROUND(K32,2) -> 
B34: abzüglich Wertanteil Garage: | E34: 10000 | F34: / | H34: =K12 -> 147 | J34: - | K34: =ROUND(E34/H34,2) -> 68.03
B35: Vergleichsfaktor (01.01.2024) ohne Garage: | J35: rd. | K35: =ROUND(K33-K34,2) -> 
B37: Berücksichtigung der veränderten Wertverhältnisse zwischen dem Richtwertstichtag und dem Wertermittlungsstichtag
B38: Zwischenergebnis: | K38: =K35 -> 
B39: UK Wertermittlungsstichtag (Index): | J39: x | K39: =EingabeMaske!D30 -> 
B40: UK Richtwertstichtag (Index): | J40: / | K40: ='Indizes 2024 Schätzung 2025'!Z18 -> 
B41: Zwischenergebnis: | K41: =ROUND(K38*K39/K40,2) -> 
B43: Zuschläge für Nebengebäude (Garagen, Carports und Sonstiges)
B44: Zwischenergebnis: | K44: =K41 -> 
B45: Garage/n: | E45: =K15 ->  | F45: / | G45: =K12&" m² x "&K39&" / "&K40 ->  | J45: + | K45: =ROUND(E45/K$12*K$39/K$40,2) -> 
B46: Carport/s: | E46: =K16 ->  | F46: / | G46: =G45 ->  | J46: + | K46: =ROUND(E46/K$12*K$39/K$40,2) -> 
B47: =E17 ->  | E47: =K17 -> 0 | F47: / | H47: =K12 -> 147 | J47: + | K47: =E47/H47 -> 0
B48: Zwischenergebnis: | J48: = | K48: =K44+K45+K46 -> 
B49: Wohnfläche: | J49: x | K49: =K12 -> 147
B50: Vergleichswert (VW): | J50: = | K50: =ROUND(K48*K49,2) -> 
B51: Vergleichswert (gerundet): | K51: =ROUND(K50,-2) -> 
B54: =EingabeMaske!A40 -> Quelle: Oberer Gutachterausschuss für Grundstückswerte Rheinland-Pfalz gem. Landesgrundstückmarkbericht 2025

Sheet RND (hidden)
A1: Modell zur Ermittlung der Restnutzungsdauer für Wohngebäude bei Modernisierungen (Anlage 2 ImmoWertV)
A3: Modernisierungen, die in den letzten 10 Jahren durchgeführt wurden | G3: Punkte | L3: max. Punkte
A4: Dacherneuerung inklusive Verbesserung der Wärmedämmung | F4: nein | G4: =IF(F4="ja",L4,0) -> 0 | L4: 4
A5: Modernisierung der Fenster und Außentüren | F5: nein | G5: =IF(F5="ja",L5,0) -> 0 | L5: 2
A6: Modernisierung der Leitungssysteme (Strom, Gas, Wasser, Abwasser) | F6: nein | G6: 0 | L6: 2
A7: Modernisierung der Heizungsanlage | F7: nein | G7: 0 | L7: 2
A8: Wärmedämmung der Außenwände | F8: nein | G8: 0 | L8: 4
A9: Modernisierung von Bädern | F9: nein | G9: 0 | L9: 2
A10: Modernisierung des Innenausbaus, z.B. Decken, Fußböden, Treppen | F10: nein | G10: 0 | L10: 2
A11: Wesentliche Verbesserung der Grundrissgestaltung | F11: nein | G11: 0 | L11: 2
A12: Summe | G12: =SUM(G4:G11) -> 0 | L12: =SUM(L4:L11) -> 20
A14: Die Ermittlung der Restnutzungsdauer bei Modernisierungen soll pauschal erfolgen | G14: nein
A15: Modernisierungsgrad | G15: Punkte | J15: pauschale Angabe
A16: nicht modernisiert | G16: 0 | H16: - | I16: 1
A17: kleine Modernisierung im Rahmen der Instandhaltung | G17: 2 | H17: - | I17: 5
A18: mittlerer Modernisierungsgrad | G18: 6 | H18: - | I18: 10
A19: überwiegend modernisiert | G19: 11 | H19: - | I19: 17
A20: umfassend modernisiert | G20: 18 | H20: - | I20: 20
A22: maßgebliche Punktzahl zur Ermittlung der Restnutzungsdauer | G22: =IF(G14="nein",G12,SUM(J16:J20)) -> 0
A25: Ermittlung der Restnutzungsdauer und des rechnerischen Baujahres
A26: Vorgaben | B26: Stichtag | E26: nur das Jahr ! | G26: =YEAR(EingabeMaske!D15) -> 2024
B27: Baujahr | G27: =EingabeMaske!D16 -> 1995
B28: tatsächliches Alter | G28: =G26-G27 -> 29 | J28: Jahre
B29: Bestimmung der Restnutzungsdauer bei Gesamtnutzungsdauer nach ImmoWertV
B30: Gesamtnutzungsdauer | G30: 80 | J30: Jahre
B31: Restnutzungsdauer nach ImmoWertV | G31: =ROUND('RND ImmoWertV'!B10,0) -> 51 | J31: Jahre
B32: lineare Alterswertminderung | G32: =ROUND((G30-G31)/G30*100,2) -> 36.25 | J32: %
B33: fiktives Baujahr | G33: =G26-(G30-G31) -> 1995
B34: Die Ermittlung des fiktiven Baujahrs wurde durchgeführt | E34: FALSE | G34: =IF(E34=TRUE,"ja","nein") -> nein

Sheet Updates
A1: Nr. | B1: Rechnerversion | C1: Updates
A2: 1 | B2: EFH-Rechner, Version 1 - LGMB 2025, Stand 04.2025 | C2: Umstellung des Rechners auf Anwendungsfunktion gemäß LGMG 2025

Sheet Vergleichsdaten 2025 (hidden)
A1: Anwendungsfunktion | B1: VF (01.01.2024) = a + b x Gf + c x BWN(01.01.2024) + d x St + e x Anb + f x WF + g x Vs + h x K
A3: Marktsegment | B3: 1 | C3: 2 | D3: 3 | E3: 4 | F3: 5 | G3: 6 | I3: =EingabeMaske!D29 -> 0
A4: Koeffizienten
A5: a | B5: =Formel!B5 -> 0 | C5: =Formel!C5 -> 0 | D5: =Formel!D5 -> 0 | E5: =Formel!E5 -> 0 | F5: =Formel!F5 -> 0 | G5: =Formel!G5 -> 0 | I5: =LOOKUP(I3,B3:G3,B5:G5) -> 
A6: b | B6: =Formel!B6 -> 0 | C6: =Formel!C6 -> 0 | D6: =Formel!D6 -> 0 | E6: =Formel!E6 -> 0 | F6: =Formel!F6 -> 0 | G6: =Formel!G6 -> 0 | I6: 0.658366
A7: c | B7: =Formel!B7 -> 0 | C7: =Formel!C7 -> 0 | D7: =Formel!D7 -> 0 | E7: =Formel!E7 -> 0 | F7: =Formel!F7 -> 0 | G7: =Formel!G7 -> 0 | I7: 3.060787
A8: d | B8: =Formel!B8 -> 0 | C8: =Formel!C8 -> 0 | D8: =Formel!D8 -> 0 | E8: =Formel!E8 -> 0 | F8: =Formel!F8 -> 0 | G8: =Formel!G8 -> 0 | I8: 797.242597
A9: e | B9: =Formel!B9 -> 0 | C9: =Formel!C9 -> 0 | D9: =Formel!D9 -> 0 | E9: =Formel!E9 -> 0 | F9: =Formel!F9 -> 0 | G9: =Formel!G9 -> 0 | I9: -417.829533
A10: f | B10: =Formel!B10 -> 0 | C10: =Formel!C10 -> 0 | D10: =Formel!D10 -> 0 | E10: =Formel!E10 -> 0 | F10: =Formel!F10 -> 0 | G10: =Formel!G10 -> 0 | I10: -9.134239
A11: g | B11: =Formel!B11 -> 0 | C11: =Formel!C11 -> 0 | D11: =Formel!D11 -> 0 | E11: =Formel!E11 -> 0 | F11: =Formel!F11 -> 0 | G11: =Formel!G11 -> 0 | I11: -108.472505
A12: h | B12: =Formel!B12 -> 0 | C12: =Formel!C12 -> 0 | D12: =Formel!D12 -> 0 | E12: =Formel!E12 -> 0 | F12: =Formel!F12 -> 0 | G12: =Formel!G12 -> 0 | I12: -51.7102
A16: Marktsegment | B16: 1 | C16: 2 | D16: 3 | E16: 4 | F16: 5 | G16: 6 | I16: =EingabeMaske!D29 -> 0
A17: Vergleichsfaktoren für Garagen | J17: Anzahl | K17: Stellpätze | N17: nach Anwendungsfunktion
A18: Garage | B18: 6500 | C18: 7000 | D18: 7500 | E18: 10000 | F18: 12000 | G18: 16000 | I18: =LOOKUP(I16,B16:G16,B18:G18) ->  | J18: =EingabeMaske!B24 -> 0 | K18: =EingabeMaske!D24 -> 0 | L18: =I18*J18+IF(J18>0,0.75*(K18-J18)*I18,0) ->  | N18: =-21162.69475+5878.275748*LN(EingabeMaske!D18) -> 9026.944649 | O18: Einzelgarage
A19: Carports | B19: =ROUND(0.85*B18,-2) -> 5500 | C19: 6000 | D19: 6400 | E19: 8500 | F19: 10200 | G19: 13600 | I19: =LOOKUP(I16,B16:G16,B19:G19) ->  | J19: =EingabeMaske!B25 -> 0 | K19: =EingabeMaske!D25 -> 0 | L19: =I19*J19+IF(J19>0,0.75*(K19-J19)*I19,0) ->  | N19: =-11875.37426+4017.87749*LN(EingabeMaske!D18) -> 8759.634673 | O19: Tiefgarage
N20: =-4652.85034+2120.189089*LN(EingabeMaske!D18) -> 6236.01347 | O20: Außenstellplatz (befestigt)
A22: Dropdown
A23: Gebäudestandard nach fiktivem Baujahr übernehmen
A24: Gebäudestandard nach fiktivem Baujahr nicht übernehmen
A26: Dropdown
A27: ja
A28: nein
A32: Baujahr | B32: Standardstufe
A33: =EingabeMaske!B35 -> liegt nicht vor | B33: =IF(RND!G34="nein","-",IF(A33<=1976,2,IF(A33>=2016,4.5,VLOOKUP(A33,A35:B75,2,FALSE)))) -> -
A35: < =1975 | B35: 2
A36: 1976 | B36: 2
A37: =A36+1 -> 1977 | B37: =ROUND(B$36+D37/D$46*0.5,1) -> 2.1 | D37: 1
A38: 1978 | B38: =ROUND(B$36+D38/D$46*0.5,1) -> 2.1 | D38: =D37+1 -> 2
A39: 1979 | B39: 2.2 | D39: 3
A40: 1980 | B40: 2.2 | D40: 4
A41: 1981 | B41: 2.3 | D41: 5
A42: 1982 | B42: 2.3 | D42: 6
A43: 1983 | B43: 2.4 | D43: 7
A44: 1984 | B44: 2.4 | D44: 8
A45: 1985 | B45: 2.5 | D45: 9
A46: 1986 | B46: 2.5 | D46: 10
A47: 1987 | B47: =ROUND(B$46+D47/D$56*0.5,1) -> 2.6 | D47: 1
A48: 1988 | B48: =ROUND(B$46+D48/D$56*0.5,1) -> 2.6 | D48: =D47+1 -> 2
A49: 1989 | B49: 2.7 | D49: 3
A50: 1990 | B50: 2.7 | D50: 4
A51: 1991 | B51: 2.8 | D51: 5
A52: 1992 | B52: 2.8 | D52: 6
A53: 1993 | B53: 2.9 | D53: 7
A54: 1994 | B54: 2.9 | D54: 8
A55: 1995 | B55: 3 | D55: 9
A56: 1996 | B56: 3 | D56: 10
A57: 1997 | B57: =ROUND(B$56+D57/D$66*1,1) -> 3.1 | D57: 1
A58: 1998 | B58: =ROUND(B$56+D58/D$66*1,1) -> 3.2 | D58: =D57+1 -> 2
A59: 1999 | B59: 3.3 | D59: 3
A60: 2000 | B60: 3.4 | D60: 4
A61: 2001 | B61: 3.5 | D61: 5
A62: 2002 | B62: 3.6 | D62: 6
A63: 2003 | B63: 3.7 | D63: 7
A64: 2004 | B64: 3.8 | D64: 8
A65: 2005 | B65: 3.9 | D65: 9
A66: 2006 | B66: 4 | D66: 10
A67: 2007 | B67: =ROUND(B$66+D67/D$76*0.5,1) -> 4.1 | D67: 1
A68: 2008 | B68: =ROUND(B$66+D68/D$76*0.5,1) -> 4.1 | D68: 2
A69: 2009 | B69: =ROUND(B$66+D69/D$76*0.5,1) -> 4.2 | D69: 3
A70: 2010 | B70: 4.2 | D70: 4
A71: 2011 | B71: 4.3 | D71: 5
A72: 2012 | B72: 4.3 | D72: 6
A73: 2013 | B73: 4.4 | D73: 7
A74: 2014 | B74: 4.4 | D74: 8
A75: 2015 | B75: 4.5 | D75: 9
A76: 2016 | B76: 4.5 | D76: 10

Sheet Formel (hidden)

Sheet UK (hidden)

Sheet Vergleichsfaktoren 2025 (2) (hidden)
B1: Vergleichsfaktoren (VF) für mit freistehenden Einfamilienwohnhäusern bebaute Grundstücke
D2: Stichtag | E2: 2024-01-01
B3: Modell s. LGMB 2025, Kap. 4.4.1.1 - © Oberer Gutachterausschuss für Grundstückswerte Rheinland-Pfalz
B4: Kurzbeschreibung des Richtwertgrundstücks: Größe 500 m², mittlerer Standard, freistehend KG+EG+ausgeb. DG, Wohnfäche 145 m², Geb.Std. 3
B5: Hinweis: Sollte eine Gemarkung nicht nachgewiesen sein, kann eine vergleichbare Gemarkung desselben Marktsegments herangezogen werden.
A6: Ergänzung LfSt
A7: Gemeinde / Gemarkung / Landkreis bzw. Stadt | B7: Nr. | C7: Gemarkung | D7: Gemeinde | E7: Landkreis/kreisfreie Stadt | F7: Markt-segment Nr. | G7: BWN €/m² Grdst.fl. | H7: VF €/m² Wohnfl.
A8: =D8&" / "&C8&" / "&E8 -> / /
A9: / /
A10: / /
A11: / /
A12: / /
A13: / /
A14: / /
A15: / /
A16: / /
A17: / /
A18: / /
A19: / /
A20: / /
A21: / /
A22: / /
A23: / /
A24: / /
A25: / /
A26: / /
A27: / /
A28: / /
A29: / /
A30: / /
A31: / /
A32: / /
A33: / /
A34: / /
A35: / /
A36: / /
A37: / /
A38: / /
A39: / /
A40: / /
A41: / /
A42: / /
A43: / /
A44: / /
A45: / /
A46: / /
A47: / /
A48: / /
A49: / /
A50: / /
A51: / /
A52: / /
A53: / /
A54: / /
A55: / /
A56: / /
A57: / /
A58: / /
A59: / /
A60: / /
A61: / /
A62: / /
A63: / /
A64: / /
A65: / /
A66: / /
A67: / /
A68: / /
A69: / /
A70: / /
A71: / /
A72: =D72&" / "&C72&" / "&E72 -> / /
A73: / /
A74: / /
A75: / /
A76: / /
A77: / /
A78: / /
A79: / /
A80: / /
A81: / /
A82: / /
A83: / /
A84: / /
A85: / /
A86: / /
A87: / /
A88: / /
A89: / /
A90: / /
A91: / /
A92: / /
A93: / /
A94: / /
A95: / /
A96: / /
A97: / /
A98: / /
A99: / /
A100: / /
A101: / /
A102: / /
A103: / /
A104: / /
A105: / /
A106: / /
A107: / /
A108: / /
A109: / /
A110: / /
A111: / /
A112: / /
A113: / /
A114: / /
A115: / /
A116: / /
A117: / /
A118: / /
A119: / /
A120: / /
A121: / /
A122: / /
A123: / /
A124: / /
A125: / /
A126: / /
A127: / /
A128: / /
A129: / /
A130: / /
A131: / /
A132: / /
A133: / /
A134: / /
A135: / /
A136: =D136&" / "&C136&" / "&E136 -> / /
A137: / /
A138: / /
A139: / /
A140: / /
A141: / /
A142: / /
A143: / /
A144: / /
A145: / /
A146: / /
A147: / /
A148: / /
A149: / /
A150: / /
A151: / /
A152: / /
A153: / /
A154: / /
A155: / /
A156: / /
A157: / /
A158: / /
A159: / /
A160: / /
A161: / /
A162: / /
A163: / /
A164: / /
A165: / /
A166: / /
A167: / /
A168: / /
A169: / /
A170: / /
A171: / /
A172: / /
A173: / /
A174: / /
A175: / /
A176: / /
A177: / /
A178: / /
A179: / /
A180: / /
A181: / /
A182: / /
A183: / /
A184: / /
A185: / /
A186: / /
A187: / /
A188: / /
A189: / /
A190: / /
A191: / /
A192: / /
A193: / /
A194: / /
A195: / /
A196: / /
A197: / /
A198: / /
A199: / /
A200: =D200&" / "&C200&" / "&E200 -> / /
... 2822 more rows

Sheet Indizes 2024 Schätzung 2025 (hidden)
A1: Quelle: Oberer Gutachterausschuss für Grundstückswerte Rheinland-Pfalz gem. Landesgrundstückmarkbericht 2025
A2: =EingabeMaske!D1 -> EFH-Rechner, Version 1 - LGMB 2025, Stand 04.2025
B8: Indizes jeweils zum 1.1. des Jahres, für Rechner des LfSt inkl. Schätzung 1.1.2025 | U8: Marktsegment | V8: Stichtag | X8: =DATE(V10,1,1) -> 2024-01-01 | Y8: =DATE(W10,1,1) -> 2025-01-01 | Z8: Stichtag Richtwert
B9: Preisindex für bebaute Ein- und Zweifamilienhausgrundstücke | O9: Stichtag Richtwert | R9: Schätzung OGA | S9: LfST | U9: =EingabeMaske!$D$29 -> 0 | V9: =EingabeMaske!$D$15 -> 2024-01-02 | X9: Tage | Y9: Tage | Z9: 2024-01-01
B10: Markt- segment | C10: 2010 | D10: 2011 | E10: 2012 | F10: 2013 | G10: 2014 | H10: 2015 | I10: 2016 | J10: 2017 | K10: 2018 | L10: 2019 | M10: 2020 | N10: 2021 | O10: 2022 | P10: 2023 | Q10: 2024 | R10: 2025 | S10: 2026 | V10: =YEAR(V9) -> 2024 | W10: =V10+1 -> 2025 | X10: =_xlfn.DAYS(V9,X8) -> 1 | Y10: =_xlfn.DAYS(Y8,X8) -> 366 | Z10: =YEAR(Z9) -> 2024
B11: 1 | C11: 100 | D11: 99 | E11: 100 | F11: 100 | G11: 100 | H11: 101 | I11: 105 | J11: 109 | K11: 116 | L11: 125 | M11: 138 | N11: 156 | O11: 184 | P11: 190 | Q11: 186 | R11: =Q11 -> 186 | S11: =R11 -> 186 | U11: 1 | V11: =HLOOKUP(V$10,$C$10:$S$17,2) -> 186 | W11: =HLOOKUP(W$10,$C$10:$S$17,2) -> 186 | X11: =V11+(W11-V11)*$X$10/$Y$10 -> 186 | Z11: =HLOOKUP($Z$10,$E$10:$Q$17,2) -> 186
B12: 2 | C12: 100 | D12: 101 | E12: 103 | F12: 104 | G12: 105 | H12: 108 | I12: 112 | J12: 117 | K12: 123 | L12: 132 | M12: 143 | N12: 160 | O12: 183 | P12: 191 | Q12: 186 | R12: =Q12 -> 186 | S12: 186 | U12: 2 | V12: =HLOOKUP(V$10,$C$10:$S$17,3) -> 186 | W12: =HLOOKUP(W$10,$C$10:$S$17,3) -> 186 | X12: =V12+(W12-V12)*$X$10/$Y$10 -> 186 | Z12: =HLOOKUP($Z$10,$E$10:$Q$17,3) -> 186
B13: 3 | C13: 100 | D13: 102 | E13: 104 | F13: 107 | G13: 108 | H13: 111 | I13: 114 | J13: 121 | K13: 129 | L13: 140 | M13: 155 | N13: 176 | O13: 200 | P13: 193 | Q13: 176 | R13: 176 | S13: 176 | U13: 3 | V13: =HLOOKUP(V$10,$C$10:$S$17,4) -> 176 | W13: =HLOOKUP(W$10,$C$10:$S$17,4) -> 176 | X13: 176 | Z13: =HLOOKUP($Z$10,$E$10:$Q$17,4) -> 176
B14: 4 | C14: 100 | D14: 102 | E14: 105 | F14: 107 | G14: 111 | H14: 115 | I14: 121 | J14: 130 | K14: 143 | L14: 156 | M14: 171 | N14: 192 | O14: 223 | P14: 212 | Q14: 197 | R14: 197 | S14: 197 | U14: 4 | V14: =HLOOKUP(V$10,$C$10:$S$17,5) -> 197 | W14: =HLOOKUP(W$10,$C$10:$S$17,5) -> 197 | X14: =V14+(W14-V14)*$X$10/$Y$10 -> 197 | Z14: =HLOOKUP($Z$10,$E$10:$Q$17,5) -> 197
B15: 5 | C15: 100 | D15: 104 | E15: 108 | F15: 114 | G15: 119 | H15: 125 | I15: 133 | J15: 143 | K15: 156 | L15: 170 | M15: 189 | N15: 210 | O15: 235 | P15: 221 | Q15: 200 | R15: 200 | S15: 200 | U15: 5 | V15: =HLOOKUP(V$10,$C$10:$S$17,6) -> 200 | W15: =HLOOKUP(W$10,$C$10:$S$17,6) -> 200 | X15: 200 | Z15: =HLOOKUP($Z$10,$E$10:$Q$17,6) -> 200
B16: 6 | C16: 100 | D16: 101 | E16: 106 | F16: 113 | G16: 120 | H16: 127 | I16: 135 | J16: 148 | K16: 160 | L16: 174 | M16: 186 | N16: 205 | O16: 231 | P16: 220 | Q16: 197 | R16: 197 | S16: 197 | U16: 6 | V16: =HLOOKUP(V$10,$C$10:$S$17,7) -> 197 | W16: =HLOOKUP(W$10,$C$10:$S$17,7) -> 197 | X16: 197 | Z16: =HLOOKUP($Z$10,$E$10:$Q$17,7) -> 197
B17: ø RLP | C17: 100 | D17: 101 | E17: 104 | F17: 106 | G17: 108 | H17: 109 | I17: 112 | J17: 118 | K17: 125 | L17: 134 | M17: 147 | N17: 165 | O17: 187 | P17: 186 | Q17: 179 | R17: 179 | S17: 179 | U17: Ø RLP | V17: =HLOOKUP(V$10,$C$10:$S$17,8) -> 179 | W17: =HLOOKUP(W$10,$C$10:$S$17,8) -> 179 | X17: 179 | Z17: =HLOOKUP($Z$10,$E$10:$Q$17,8) -> 179
U18: =U9 -> 0 | W18: = | X18: =ROUND(VLOOKUP(U9,U11:X17,4),1) ->  | Z18: =VLOOKUP(U9,U11:Z17,6) -> 
B19: © Oberer Gutachterausschuss für Grundstückswerte Rheinland-Pfalz, Stand Juli 2024
B20: vgl. LGMB 2023, Abschnitt 4.6.1 und 4.6.2

Sheet RND ImmoWertV (hidden)
A2: Restnutzungsdauer bei Modernisierung nach ImmoWertV
J3: a | K3: 1.25 | L3: 1.25 | M3: 1.0767 | N3: 0.9033 | O3: 0.73 | P3: 0.6725 | Q3: 0.615 | R3: 0.5575 | S3: 0.5 | T3: 0.466 | U3: 0.432 | V3: 0.398 | W3: 0.364 | X3: 0.33 | Y3: 0.304 | Z3: 0.278 | AA3: 0.252 | AB3: 0.226 | AC3: 0.2 | AD3: 0.2 | AE3: 0.2
J4: b | K4: 2.625 | L4: 2.625 | M4: 2.2757 | N4: 1.9263 | O4: 1.577 | P4: 1.4578 | Q4: 1.3385 | R4: 1.2193 | S4: 1.1 | T4: 1.027 | U4: 0.954 | V4: 0.881 | W4: 0.808 | X4: 0.735 | Y4: 0.676 | Z4: 0.617 | AA4: 0.558 | AB4: 0.499 | AC4: 0.44 | AD4: 0.44 | AE4: 0.44
J5: c | K5: 1.525 | L5: 1.525 | M5: 1.3878 | N5: 1.2505 | O5: 1.1133 | P5: 1.085 | Q5: 1.0567 | R5: 1.0283 | S5: 1 | T5: 0.9906 | U5: 0.9811 | V5: 0.9717 | W5: 0.9622 | X5: 0.9528 | Y5: 0.9506 | Z5: 0.9485 | AA5: 0.9463 | AB5: 0.9442 | AC5: 0.942 | AD5: 0.942 | AE5: 0.942
J6: ab rel. Alter | K6: 60 | L6: 60 | M6: 55 | N6: 55 | O6: 40 | P6: 35 | Q6: 30 | R6: 25 | S6: 20 | T6: 19 | U6: 18 | V6: 17 | W6: 16 | X6: 15 | Y6: 14 | Z6: 13 | AA6: 12 | AB6: 11 | AC6: 10 | AD6: 10 | AE6: 10
B8: Ergebnis | H8: Vorgaben
B9: RND | C9: Pkte | D9: abger. Pkte | E9: RND | F9: aufger. Pkte | G9: RND | H9: GND | I9: Alter | J9: rel. Alter [%] | K9: 0 | L9: =K9+1 -> 1 | M9: =L9+1 -> 2 | N9: 3 | O9: 4 | P9: 5 | Q9: 6 | R9: 7 | S9: 8 | T9: 9 | U9: 10 | V9: 11 | W9: 12 | X9: 13 | Y9: 14 | Z9: 15 | AA9: 16 | AB9: 17 | AC9: 18 | AD9: 19 | AE9: 20
A10: 1 | B10: =ROUND(E10+(C10-D10)*(G10-E10),0) -> 51 | C10: =RND!G22 -> 0 | D10: =ROUNDDOWN(C10,0) -> 0 | E10: =IF($J10=0,0,HLOOKUP(D10,$K$9:$AE$10,$A10+1,0)) -> 51 | F10: =ROUNDUP(C10,0) -> 0 | G10: =IF($J10=0,0,HLOOKUP(F10,$K$9:$AE$10,$A10+1,0)) -> 51 | H10: =RND!G30 -> 80 | I10: =RND!G28 -> 29 | J10: =IF(H10=0,0,I10/H10*100) -> 36.25 | K10: =ROUND(IF(($J10>=K$6)*($H10>=$I10),K$3*$I10^2/$H10-K$4*$I10+K$5*$H10,IF(($J10>=K$6)*($H10<$I10),K$3*$H10^2/$H10-K$4*$H10+K$5*$H10,$H10-$I10)),2) -> 51 | L10: =ROUND(IF(($J10>=L$6)*($H10>=$I10),L$3*$I10^2/$H10-L$4*$I10+L$5*$H10,IF(($J10>=L$6)*($H10<$I10),L$3*$H10^2/$H10-L$4*$H10+L$5*$H10,$H10-$I10)),2) -> 51 | M10: 51 | N10: 51 | O10: 51 | P10: 51.59 | Q10: 52.18 | R10: 52.77 | S10: 53.36 | T10: 54.36 | U10: 55.36 | V10: 56.37 | W10: 57.37 | X10: 58.38 | Y10: 59.64 | Z10: 60.91 | AA10: 62.17 | AB10: =ROUND(IF(($J10>=AB$6)*($H10>=$I10),AB$3*$I10^2/$H10-AB$4*$I10+AB$5*$H10,IF(($J10>=AB$6)*($H10<$I10),AB$3*$H10^2/$H10-AB$4*$H10+AB$5*$H10,$H10-$I10)),2) -> 63.44 | AC10: 64.7 | AD10: 64.7 | AE10: 64.7
B12: Mindestrestnutzungsdauer:
B13: =30%*H10 -> 24
B14: maßgeblich:
B15: =IF(B13>B10,B13,B10) -> 51 | C15: Jahre
